fUSD/lending_fUSD_20250514
["ID","MTS","AMOUNT","RATE_DAILY","PERIOD"]
[361016267,1747205870479,-500.0,0.00041096,31]
[361016268,1747205870505,-500.0,0.00041096,31]
[361016269,1747205870531,-444.81413774,0.00041096,31]
[361016270,1747205870557,-500.0,0.00041096,31]
[361016271,1747205870582,-500.0,0.00041096,31]
[361016272,1747205870607,-500.0,0.00041096,31]
[361016273,1747205870631,-193.39735465,0.00041096,31]
[361016274,1747205870656,-717.92660017,0.00041111,30]
[361016275,1747205870682,-297.968629,0.00041245,120]
[361016276,1747205870708,-2000.0,0.00041245,120]
[361016277,1747205870735,-327.478839,0.00041245,120]
[361016278,1747205870761,-200.0,0.00041245,120]
[361016279,1747205870787,-150.0,0.00041284,120]
[361016280,1747205870813,-1374.1977,0.00041288,30]
[361016281,1747205870838,-160.0,0.000413,38]
[361016282,1747205870864,-160.0,0.000413,38]
[361016283,1747205870892,-150.0,0.00041319,120]
[361016284,1747205870919,-150.0,0.00041327,120]
[361016285,1747205870946,-500.0,0.00041464,30]
[361016286,1747205870973,-500.0,0.00041464,30]
[361016287,1747205870999,-500.0,0.00041464,30]
[361016288,1747205871024,-500.0,0.00041464,30]
[361016289,1747205871050,-500.0,0.00041464,30]
[361016290,1747205871076,-500.0,0.00041464,30]
[361016291,1747205871103,-500.0,0.00041464,30]
[361016292,1747205871131,-500.0,0.00041464,30]
[361016293,1747205871156,-500.0,0.00041464,30]
[361016294,1747205871181,-500.0,0.00041464,30]
[361016295,1747205871210,-500.0,0.00041464,30]
[361016296,1747205871238,-500.0,0.00041464,30]
[361016297,1747205871266,-500.0,0.00041464,30]
[361016298,1747205871545,-500.0,0.00041464,30]
[361016299,1747205871573,-500.0,0.00041464,30]
[361016300,1747205871599,-500.0,0.00041464,30]
[361016301,1747205871625,-500.0,0.00041464,30]
[361016302,1747205871650,-500.0,0.00041464,30]
[361016303,1747205871676,-500.0,0.00041464,30]
[361016304,1747205871702,-500.0,0.00041464,30]
[361016305,1747205871727,-500.0,0.00041464,30]
[361016306,1747205871754,-500.0,0.00041464,30]
[361016307,1747205871779,-500.0,0.00041464,30]
[361016308,1747205871805,-500.0,0.00041464,30]
[361016309,1747205871830,-500.0,0.00041464,30]
[361016310,1747205871855,-500.0,0.00041464,30]
[361016311,1747205871880,-500.0,0.00041464,30]
[361016312,1747205871906,-500.0,0.00041464,30]
[361016313,1747205871932,-1374.1977,0.00041488,30]
[361016314,1747205871960,-150.0,0.00041534,120]
[361016315,1747205871987,-150.0,0.00041546,120]
[361016316,1747205872014,-496.1268669,0.000416,60]
[361016317,1747205872044,-1374.1977,0.00041688,30]
[361016318,1747205872070,-403.35,0.0004169,30]
[361016319,1747205872098,-150.0,0.00041801,120]
[361016320,1747205872124,-20719.82,0.0004188,120]
[361016321,1747205872149,-1374.1977,0.00041888,30]
[361016322,1747205872176,-150.0,0.00041907,120]
[361016323,1747205872203,-389.0,0.0004197,120]
[361016324,1747205872230,-389.0,0.0004197,120]
[361016325,1747205872257,-1577.0,0.0004197,120]
[361016326,1747205872284,-1577.0,0.0004197,120]
[361016327,1747205872310,-684.0,0.0004197,120]
[361016328,1747205872336,-684.0,0.0004197,120]
[361016329,1747205872364,-922.0,0.0004197,120]
[361016330,1747205872390,-922.0,0.0004197,120]
[361016331,1747205872417,-389.0,0.0004198,120]
[361016332,1747205872443,-389.0,0.0004198,120]
[361016333,1747205872470,-389.0,0.0004198,120]
[361016334,1747205872497,-1577.0,0.0004198,120]
[361016335,1747205872524,-1577.0,0.0004198,120]
[361016336,1747205872551,-1577.0,0.0004198,120]
[361016337,1747205872577,-398.45,0.0004198,120]
[361016338,1747205872605,-1584.25,0.0004198,120]
[361016339,1747205872631,-684.0,0.0004198,120]
[361016340,1747205872657,-684.0,0.0004198,120]
[361016341,1747205872684,-684.0,0.0004198,120]
[361016342,1747205872712,-687.98,0.0004198,120]
[361016343,1747205872739,-922.0,0.0004198,120]
[361016344,1747205872764,-922.0,0.0004198,120]
[361016345,1747205872791,-922.0,0.0004198,120]
[361016346,1747205872818,-925.16,0.0004198,120]
[361016347,1747205872843,-200.0,0.00041987,30]
[361016348,1747205872869,-389.0,0.0004199,120]
[361016349,1747205872894,-389.0,0.0004199,120]
[361016350,1747205872920,-389.0,0.0004199,120]
[361016351,1747205872945,-1577.0,0.0004199,120]
[361016352,1747205872970,-1577.0,0.0004199,120]
[361016353,1747205872995,-1577.0,0.0004199,120]
[361016354,1747205873020,-389.0,0.0004199,120]
[361016355,1747205873047,-1577.0,0.0004199,120]
[361016356,1747205873073,-684.0,0.0004199,120]
[361016357,1747205873098,-254.23,0.0004199,120]
[361016358,1747205873125,-684.0,0.0004199,120]
[361016359,1747205873151,-684.0,0.0004199,120]
[361016360,1747205873176,-684.0,0.0004199,120]
[361016361,1747205873203,-922.0,0.0004199,120]
[361016362,1747205873231,-922.0,0.0004199,120]
[361016363,1747205873257,-922.0,0.0004199,120]
[361016364,1747205873283,-922.0,0.0004199,120]
[361016365,1747205873313,-50000.0,0.00042,42]
[361016366,1747205873339,-900.0,0.00042,43]
[361016367,1747205873364,-371.56571663,0.00042,120]
[361016368,1747205873390,-472.4596823,0.00042,120]
[361016369,1747205873417,-421.37682985,0.00042,30]
[361016370,1747205873443,-1132.74725567,0.00042,120]
[361016371,1747205873469,-244.80868633,0.00042,30]
[361016372,1747205873497,-1254.14306866,0.00042,120]
[361016373,1747205873522,-1500.0,0.00042,120]
[361016374,1747205873549,-2000.0,0.00042,120]
[361016375,1747205873574,-950.86000016,0.00042,120]
[361016376,1747205873600,-1233.34,0.00042,120]
[361016377,1747205873627,-150.0,0.00042054,120]
[361016378,1747205873653,-338.81770374,0.00042121,120]
[361016379,1747205873680,-3000.0,0.000422,120]
[361016380,1747205873707,-150.0,0.00042215,120]
[361016381,1747205873734,-160.0,0.000423,43]
[361016382,1747205873761,-160.0,0.000423,43]
[361016383,1747205873813,-179.8003143,0.000425,120]
[361016384,1747205873843,-150.0,0.0004252,120]
[361016385,1747205873871,-2000.0,0.00042745,120]
[361016386,1747205873898,-200.0,0.00042745,120]
[361016387,1747205873925,-70740.06484322,0.0004279,120]
[361016388,1747205873953,-7838.85379451,0.0004279,120]
[361016389,1747205873981,-2098.96351705,0.000428,120]
[361016390,1747205874007,-2048.50637965,0.000428,120]
[361016391,1747205874035,-154.95754952,0.000429,120]
[361016392,1747205874066,-154.95754952,0.000429,120]
[361016393,1747205874098,-50000.0,0.00043,43]
[361016394,1747205874126,-900.0,0.00043,44]
[361016395,1747205874153,-223.73164051,0.00043,120]
[361016396,1747205874179,-272.75720941,0.00043,120]
[361016397,1747205874206,-1947.22542388,0.00043,120]
[361016398,1747205874234,-1000.0,0.00043,120]
[361016399,1747205874262,-31854.0,0.00043,120]
[361016400,1747205874289,-5079.48672313,0.00043,120]
[361016401,1747205874521,-207.40681636,0.00043,120]
[361016402,1747205874550,-817.8,0.00043,120]
[361016403,1747205874578,-878.43,0.00043,120]
[361016404,1747205874606,-732.86,0.00043,120]
[361016405,1747205874635,-150.0,0.00043049,120]
[361016406,1747205874664,-1000.0,0.000431,120]
[361016407,1747205874693,-150.0,0.00043281,120]
[361016408,1747205874720,-160.0,0.000433,47]
[361016409,1747205874750,-160.0,0.000433,47]
[361016410,1747205874776,-1000.0,0.000434,120]
[361016411,1747205874802,-888.0,0.00043405,30]
[361016412,1747205874828,-670.01955411,0.0004347,30]
[361016413,1747205874854,-307.36,0.000436,120]
[361016414,1747205874880,-253.61,0.000436,120]
[361016415,1747205874907,-793.72,0.000436,120]
[361016416,1747205874934,-247.88,0.000436,120]
[361016417,1747205874960,-500.0,0.00043612,30]
[361016418,1747205874987,-1786.81722137,0.000437,120]
[361016419,1747205875013,-134704.07685984,0.000438,30]
[361016420,1747205875040,-381.09265,0.000438,120]
[361016421,1747205875069,-483.69150003,0.000438,30]
[361016422,1747205875094,-1509.34014974,0.000438,120]
[361016423,1747205875125,-5821.73870769,0.000438,120]
[361016424,1747205875152,-2000.0,0.000438,120]
[361016425,1747205875180,-150.0,0.00043806,120]
[361016426,1747205875206,-150.0,0.00043835,60]
[361016427,1747205875233,-726.64797398,0.00043835,120]
[361016428,1747205875260,-500.0,0.00043835,120]
[361016429,1747205875287,-500.0,0.00043836,30]
[361016430,1747205875314,-1576.29462,0.00043836,120]
[361016431,1747205875343,-150.0,0.00043867,120]
[361016432,1747205875372,-150.0,0.00043963,120]
[361016433,1747205875400,-5693.01623418,0.0004399,30]
[361016434,1747205875431,-50000.0,0.00044,44]
[361016435,1747205875459,-900.0,0.00044,45]
[361016436,1747205875487,-1000.0,0.00044,120]
[361016437,1747205875514,-1500.0,0.00044,120]
[361016438,1747205875543,-2000.0,0.00044,120]
[361016439,1747205875570,-263.4277443,0.00044,120]
[361016440,1747205875596,-283.25,0.00044,120]
[361016441,1747205875622,-232.72,0.00044,120]
[361016442,1747205875650,-525.405738,0.00044,57]
[361016443,1747205875680,-300.0,0.00044203,30]
[361016444,1747205875707,-150.78,0.00044203,30]
[361016445,1747205875734,-150.57,0.00044203,30]
[361016446,1747205875762,-325.0,0.00044203,30]
[361016447,1747205875789,-352.94,0.00044203,30]
[361016448,1747205875815,-300.18,0.00044203,30]
[361016449,1747205875842,-1157.11,0.00044203,30]
[361016450,1747205875870,-452.44,0.00044203,30]
[361016451,1747205875897,-1157.11,0.00044203,30]
[361016452,1747205875925,-352.94,0.00044203,30]
[361016453,1747205875953,-1157.11,0.00044203,30]
[361016454,1747205875980,-352.94,0.00044203,30]
[361016455,1747205876007,-1157.11,0.00044203,30]
[361016456,1747205876041,-352.94,0.00044203,30]
[361016457,1747205876068,-1157.11,0.00044203,30]
[361016458,1747205876097,-378.41,0.00044203,30]
[361016459,1747205876125,-1158.87,0.00044203,30]
[361016460,1747205876153,-2043.311867,0.00044245,120]
[361016461,1747205876180,-269.548316,0.00044245,120]
[361016462,1747205876207,-2700.3199926,0.000443,120]
[361016463,1747205876236,-160.0,0.000443,51]
[361016464,1747205876263,-160.0,0.000443,51]
[361016465,1747205876292,-259.35472,0.000443,120]
[361016466,1747205876322,-150.0,0.00044384,30]
[361016467,1747205876349,-293.88054847,0.00044384,30]
[361016468,1747205876377,-150.0,0.00044384,30]
[361016469,1747205876403,-249.91751949,0.00044384,30]
[361016470,1747205876430,-150.0,0.00044384,30]
[361016471,1747205876456,-150.0,0.00044384,30]
[361016472,1747205876485,-150.0,0.00044384,30]
[361016473,1747205876513,-150.0,0.00044384,30]
[361016474,1747205876539,-150.0,0.00044384,30]
[361016475,1747205876566,-150.0,0.00044384,30]
[361016476,1747205876592,-150.0,0.00044384,30]
[361016477,1747205876619,-150.0,0.00044384,30]
[361016478,1747205876646,-293.88054847,0.00044433,30]
[361016479,1747205876672,-249.91751949,0.00044433,30]
[361016480,1747205876699,-150.0,0.00044444,30]
[361016481,1747205876725,-150.0,0.00044464,30]
[361016482,1747205876752,-9268.6,0.00044471,117]
[361016483,1747205876779,-293.88054847,0.00044483,30]
[361016484,1747205876806,-249.91751949,0.00044483,30]
[361016485,1747205876833,-1000.0,0.000445,120]
[361016486,1747205876859,-150.0,0.00044504,30]
[361016487,1747205876886,-150.0,0.00044505,30]
[361016488,1747205876912,-500.0,0.0004452,120]
[361016489,1747205876939,-150.0,0.00044529,30]
[361016490,1747205876965,-293.88054847,0.00044533,30]
[361016491,1747205876991,-249.91751949,0.00044533,30]
[361016492,1747205877030,-150.0,0.00044545,30]
[361016493,1747205877064,-150.0,0.00044566,30]
[361016494,1747205877099,-293.88054847,0.00044583,30]
[361016495,1747205877127,-249.91751949,0.00044583,30]
[361016496,1747205877156,-150.0,0.00044618,30]
[361016497,1747205877183,-150.0,0.00044624,30]
[361016498,1747205877213,-150.0,0.00044626,30]
[361016499,1747205877240,-150.0,0.00044627,30]
[361016500,1747205877267,-293.88054847,0.00044633,30]
[361016501,1747205877293,-249.91751949,0.00044633,30]
[361016502,1747205877321,-150.0,0.00044643,30]
[361016503,1747205877347,-150.0,0.00044674,30]
[361016504,1747205877374,-293.88054847,0.00044682,30]
[361016505,1747205877401,-249.91751949,0.00044682,30]
[361016506,1747205877680,-150.0,0.00044688,30]
[361016507,1747205877707,-1795.19199393,0.000447,120]
[361016508,1747205877733,-823.69764667,0.000447,120]
[361016509,1747205877760,-150.0,0.00044707,30]
[361016510,1747205877786,-293.88054847,0.00044732,30]
[361016511,1747205877812,-249.91751949,0.00044732,30]
[361016512,1747205877838,-150.0,0.00044744,30]
[361016513,1747205877864,-150.0,0.00044749,30]
[361016514,1747205877891,-150.0,0.00044778,120]
[361016515,1747205877917,-293.88054847,0.00044782,30]
[361016516,1747205877944,-249.91751949,0.00044782,30]
[361016517,1747205877971,-150.0,0.00044788,30]
[361016518,1747205877998,-381.09265,0.000448,120]
[361016519,1747205878025,-124484.815329,0.000448,120]
[361016520,1747205878055,-150.0,0.0004481,30]
[361016521,1747205878084,-150.0,0.00044812,120]
[361016522,1747205878110,-150.0,0.00044819,30]
[361016523,1747205878139,-293.88054847,0.00044832,30]
[361016524,1747205878164,-249.91751949,0.00044832,30]
[361016525,1747205878189,-150.0,0.00044832,30]
[361016526,1747205878215,-150.0,0.00044853,30]
[361016527,1747205878240,-150.0,0.00044865,30]
[361016528,1747205878266,-150.0,0.00044869,30]
[361016529,1747205878291,-150.0,0.00044871,30]
[361016530,1747205878316,-150.0,0.00044877,30]
[361016531,1747205878342,-293.88054847,0.00044882,30]
[361016532,1747205878367,-249.91751949,0.00044882,30]
[361016533,1747205878392,-2000.0,0.000449,30]
[361016534,1747205878418,-2000.0,0.000449,30]
[361016535,1747205878444,-2000.0,0.000449,30]
[361016536,1747205878470,-2000.0,0.000449,30]
[361016537,1747205878495,-218.37519084,0.000449,30]
[361016538,1747205878521,-1514.03495732,0.000449,120]
[361016539,1747205878547,-1082.19167156,0.000449,30]
[361016540,1747205878573,-900.0,0.000449,30]
[361016541,1747205878599,-680.66,0.000449,120]
[361016542,1747205878625,-164.5811294,0.000449,120]
[361016543,1747205878652,-164.58112939,0.000449,120]
[361016544,1747205878680,-164.58112939,0.000449,120]
[361016545,1747205878706,-164.58112939,0.000449,120]
[361016546,1747205878731,-164.58112939,0.000449,120]
[361016547,1747205878757,-164.58112939,0.000449,120]
[361016548,1747205878786,-150.0,0.00044903,30]
[361016549,1747205878815,-150.0,0.00044908,120]
[361016550,1747205878842,-293.88054847,0.00044931,30]
[361016551,1747205878869,-150.0,0.00044931,30]
[361016552,1747205878895,-249.91751949,0.00044931,30]
[361016553,1747205878923,-150.0,0.00044949,30]
[361016554,1747205878949,-150.0,0.00044964,30]
[361016555,1747205878976,-3313.79243069,0.0004498,120]
[361016556,1747205879005,-293.88054847,0.00044981,30]
[361016557,1747205879033,-249.91751949,0.00044981,30]
[361016558,1747205879061,-150.0,0.00044985,30]
[361016559,1747205879088,-697.30780165,0.0004499,30]
[361016560,1747205879117,-150.0,0.00044992,30]
[361016561,1747205879144,-226.75238635,0.00044998,120]
[361016562,1747205879175,-50000.0,0.00045,45]
[361016563,1747205879203,-1719.0,0.00045,120]
[361016564,1747205879231,-151.0,0.00045,120]
[361016565,1747205879256,-1035.78,0.00045,120]
[361016566,1747205879282,-1035.78,0.00045,120]
[361016567,1747205879308,-1035.78,0.00045,120]
[361016568,1747205879333,-1035.78,0.00045,120]
[361016569,1747205879358,-1035.78,0.00045,120]
[361016570,1747205879384,-540.64693137,0.00045,120]
[361016571,1747205879409,-487.50642645,0.00045,120]
[361016572,1747205879434,-183.37122226,0.00045,32]
[361016573,1747205879460,-14999.999999,0.00045,120]
[361016574,1747205879486,-518.7364585,0.00045,45]
[361016575,1747205879511,-609.64316081,0.00045,120]
[361016576,1747205879537,-1315.46749835,0.00045,120]
[361016577,1747205879562,-1000.0,0.00045,120]
[361016578,1747205879587,-250.94939241,0.00045,32]
[361016579,1747205879614,-138282.21005951,0.00045,60]
[361016580,1747205879639,-10000.0,0.00045,30]
[361016581,1747205879664,-1274.0,0.00045,120]
[361016582,1747205879689,-180.0,0.00045,30]
[361016583,1747205879714,-2080.9506482,0.00045,120]
[361016584,1747205879739,-1000.0,0.00045,120]
[361016585,1747205879766,-501.293455,0.00045,120]
[361016586,1747205879793,-1010.0,0.00045,120]
[361016587,1747205879819,-1534.0860973,0.00045,120]
[361016588,1747205879847,-31854.0,0.00045,120]
[361016589,1747205879874,-2000.0,0.00045,120]
[361016590,1747205879901,-25249.43723043,0.00045,120]
[361016591,1747205879928,-167.42565113,0.00045,30]
[361016592,1747205879956,-477.0,0.00045,120]
[361016593,1747205879982,-212.97882152,0.00045,60]
[361016594,1747205880009,-1281.32239348,0.00045,120]
[361016595,1747205880039,-345.13615652,0.00045,30]
[361016596,1747205880070,-150.0,0.00045,120]
[361016597,1747205880098,-200.0,0.00045,120]
[361016598,1747205880125,-150.0,0.00045,120]
[361016599,1747205880154,-150.0,0.00045,120]
[361016600,1747205880182,-1606.82,0.0004502,30]
[361016601,1747205880209,-452.72,0.0004502,30]
[361016602,1747205880236,-150.09,0.0004502,30]
[361016603,1747205880263,-452.72,0.0004502,30]
[361016604,1747205880289,-150.0,0.0004503,30]
[361016605,1747205880316,-293.88054847,0.00045031,30]
[361016606,1747205880342,-249.91751949,0.00045031,30]
[361016607,1747205880369,-150.0,0.00045039,120]
[361016608,1747205880395,-150.0,0.00045053,30]
[361016609,1747205880421,-293.88054847,0.00045081,30]
[361016610,1747205880446,-249.91751949,0.00045081,30]
[361016611,1747205880683,-150.0,0.00045088,30]
[361016612,1747205880711,-457.31770471,0.000451,30]
[361016613,1747205880738,-150.0,0.00045105,30]
[361016614,1747205880766,-150.0,0.00045109,30]
[361016615,1747205880793,-150.0,0.00045111,30]
[361016616,1747205880820,-1773.291,0.00045111,120]
[361016617,1747205880848,-1773.292,0.00045111,120]
[361016618,1747205880876,-1773.292,0.00045111,120]
[361016619,1747205880903,-1773.291,0.00045111,120]
[361016620,1747205880931,-1773.292,0.00045111,120]
[361016621,1747205880959,-150.0,0.00045114,30]
[361016622,1747205880986,-293.88054847,0.00045131,30]
[361016623,1747205881013,-249.91751949,0.00045131,30]
[361016624,1747205881041,-150.0,0.00045162,30]
[361016625,1747205881068,-150.0,0.00045175,30]
[361016626,1747205881095,-293.88054847,0.00045181,30]
[361016627,1747205881121,-249.91751949,0.00045181,30]
[361016628,1747205881149,-150.0,0.00045186,120]
[361016629,1747205881176,-150.0,0.00045186,120]
[361016630,1747205881203,-150.0,0.00045192,30]
[361016631,1747205881229,-2000.0,0.000452,120]
[361016632,1747205881258,-500.0,0.00045205,120]
[361016633,1747205881284,-150.0,0.00045225,30]
[361016634,1747205881311,-1997.56079262,0.00045226,30]
[361016635,1747205881337,-293.88054847,0.0004523,30]
[361016636,1747205881363,-249.91751949,0.0004523,30]
[361016637,1747205881388,-150.0,0.00045236,30]
[361016638,1747205881414,-150.0,0.00045254,30]
[361016639,1747205881441,-150.0,0.00045273,30]
[361016640,1747205881468,-293.88054847,0.0004528,30]
[361016641,1747205881496,-249.91751949,0.0004528,30]
[361016642,1747205881522,-150.0,0.0004528,30]
[361016643,1747205881550,-150.0,0.00045293,120]
[361016644,1747205881576,-150.0,0.00045297,30]
[361016645,1747205881603,-160.0,0.000453,56]
[361016646,1747205881629,-160.0,0.000453,56]
[361016647,1747205881656,-1000.0,0.000453,120]
[361016648,1747205881682,-784.59652491,0.0004531,120]
[361016649,1747205881709,-150.0,0.00045313,120]
[361016650,1747205881737,-150.0,0.00045323,30]
[361016651,1747205881764,-293.88054847,0.0004533,30]
[361016652,1747205881792,-249.91751949,0.0004533,30]
[361016653,1747205881818,-150.0,0.00045346,30]
[361016654,1747205881843,-150.0,0.00045354,30]
[361016655,1747205881869,-150.0,0.00045358,30]
[361016656,1747205881895,-150.0,0.0004537,30]
[361016657,1747205881922,-293.88054847,0.0004538,30]
[361016658,1747205881948,-249.91751949,0.0004538,30]
[361016659,1747205881974,-150.0,0.00045399,30]
[361016660,1747205882003,-259.35472,0.000454,120]
[361016661,1747205882030,-2000.0,0.000454,120]
[361016662,1747205882059,-150.0,0.00045419,30]
[361016663,1747205882084,-150.0,0.00045422,30]
[361016664,1747205882112,-293.88054847,0.0004543,30]
[361016665,1747205882139,-249.91751949,0.0004543,30]
[361016666,1747205882165,-150.0,0.00045434,30]
[361016667,1747205882191,-150.0,0.00045466,30]
[361016668,1747205882219,-293.88054847,0.00045479,30]
[361016669,1747205882246,-150.0,0.00045479,30]
[361016670,1747205882276,-249.91751949,0.00045479,30]
[361016671,1747205882302,-512.0,0.0004549,30]
[361016672,1747205882330,-210.0,0.0004549,30]
[361016673,1747205882356,-1000.0,0.000455,120]
[361016674,1747205882384,-2000.0,0.000455,120]
[361016675,1747205882410,-150.0,0.00045515,30]
[361016676,1747205882438,-293.88054847,0.00045529,30]
[361016677,1747205882467,-249.91751949,0.00045529,30]
[361016678,1747205882494,-150.0,0.0004554,30]
[361016679,1747205882520,-150.0,0.00045544,30]
[361016680,1747205882547,-150.0,0.00045558,30]
[361016681,1747205882573,-293.88054847,0.00045579,30]
[361016682,1747205882599,-249.91751949,0.00045579,30]
[361016683,1747205882625,-150.0,0.00045586,30]
[361016684,1747205882652,-150.0,0.00045596,30]
[361016685,1747205882679,-2000.0,0.000456,120]
[361016686,1747205882705,-150.0,0.00045601,30]
[361016687,1747205882732,-293.88054847,0.00045629,30]
[361016688,1747205882760,-249.91751949,0.00045629,30]
[361016689,1747205882788,-150.0,0.00045662,30]
[361016690,1747205882815,-150.0,0.00045677,30]
[361016691,1747205882842,-293.88054847,0.00045679,30]
[361016692,1747205882869,-249.91751949,0.00045679,30]
[361016693,1747205882894,-150.0,0.00045681,30]
[361016694,1747205882921,-150.0,0.00045689,30]
[361016695,1747205882948,-362.30196683,0.000457,120]
[361016696,1747205882976,-150.0,0.00045707,30]
[361016697,1747205883003,-150.0,0.00045723,30]
[361016698,1747205883030,-293.88054847,0.00045728,30]
[361016699,1747205883059,-249.91751949,0.00045728,30]
[361016700,1747205883087,-150.0,0.00045728,30]
[361016701,1747205883114,-150.0,0.00045758,30]
[361016702,1747205883142,-293.88054847,0.00045778,30]
[361016703,1747205883170,-249.91751949,0.00045778,30]
[361016704,1747205883197,-150.0,0.00045784,30]
[361016705,1747205883223,-150.0,0.00045793,30]
[361016706,1747205883249,-50000.0,0.000458,120]
[361016707,1747205883277,-381.09265,0.000458,120]
[361016708,1747205883305,-2757.0198,0.000458,120]
[361016709,1747205883331,-2000.0,0.000458,120]
[361016710,1747205883360,-834.37,0.00045805,90]
[361016711,1747205883387,-150.0,0.00045827,30]
[361016712,1747205883417,-293.88054847,0.00045828,30]
[361016713,1747205883445,-249.91751949,0.00045828,30]
[361016714,1747205883473,-150.0,0.00045834,30]
[361016715,1747205883501,-150.0,0.00045839,30]
[361016716,1747205883724,-1156.1,0.00045842,30]
[361016717,1747205883754,-150.0,0.00045845,30]
[361016718,1747205883782,-150.0,0.00045863,30]
[361016719,1747205883810,-293.88054847,0.00045878,30]
[361016720,1747205883839,-249.91751949,0.00045878,30]
[361016721,1747205883868,-203.0,0.0004588,60]
[361016722,1747205883895,-500.0,0.0004589,120]
[361016723,1747205883924,-50000.0,0.000459,120]
[361016724,1747205883953,-603.43545246,0.000459,119]
[361016725,1747205883982,-150.0,0.00045906,30]
[361016726,1747205884010,-150.0,0.0004592,30]
[361016727,1747205884043,-293.88054847,0.00045928,30]
[361016728,1747205884073,-249.91751949,0.00045928,30]
[361016729,1747205884102,-1302.35055662,0.0004593,30]
[361016730,1747205884130,-200.0,0.00045932,30]
[361016731,1747205884159,-256.76743926,0.00045938,30]
[361016732,1747205884185,-150.0,0.00045941,30]
[361016733,1747205884213,-686.22818172,0.00045945,30]
[361016734,1747205884241,-150.0,0.00045947,30]
[361016735,1747205884268,-277.35679052,0.00045951,30]
[361016736,1747205884296,-3691.68800913,0.00045952,30]
[361016737,1747205884323,-200.0,0.00045962,30]
[361016738,1747205884350,-200.0,0.00045963,30]
[361016739,1747205884379,-150.0,0.00045966,30]
[361016740,1747205884406,-1836.86238185,0.00045967,30]
[361016741,1747205884434,-686.22818169,0.0004597,30]
[361016742,1747205884462,-200.0,0.00045972,30]
[361016743,1747205884493,-200.0,0.00045973,30]
[361016744,1747205884523,-256.76743926,0.00045974,30]
[361016745,1747205884553,-203.92065376,0.00045975,30]
[361016746,1747205884582,-293.88054847,0.00045978,30]
[361016747,1747205884610,-249.91751949,0.00045978,30]
[361016748,1747205884637,-150.0,0.00045979,30]
[361016749,1747205884665,-213.5348785,0.00045986,30]
[361016750,1747205884694,-500.0,0.00045989,60]
[361016751,1747205884722,-200.0,0.00045989,30]
[361016752,1747205884751,-558.31562848,0.0004599,60]
[361016753,1747205884781,-150.0,0.00045993,120]
[361016754,1747205884812,-50000.0,0.00046,46]
[361016755,1747205884841,-1000.0,0.00046,120]
[361016756,1747205884869,-8331.48978997,0.00046,120]
[361016757,1747205884898,-906.89249921,0.00046,60]
[361016758,1747205884927,-1000.0,0.00046,120]
[361016759,1747205884956,-1500.0,0.00046,120]
[361016760,1747205884984,-1637.3758283,0.00046,60]
[361016761,1747205885013,-505.76,0.00046,120]
[361016762,1747205885044,-2000.0,0.00046,120]
[361016763,1747205885075,-2000.0,0.00046,120]
[361016764,1747205885104,-10011.32600947,0.00046,120]
[361016765,1747205885132,-7719.8088302,0.00046,120]
[361016766,1747205885160,-2582.72094481,0.00046,120]